bitfinex/quotes_BTCUSD_20250212
["timestamp","ask_amount","ask_price","bid_price","bid_amount"]
[1739347818839,1.31195183,96451.0,96450.0,0.36663195]
[1739347819042,0.03750883,96451.0,96450.0,0.36663195]
[1739347819221,3.10021083,96451.0,96450.0,0.37463195]
[1739347819422,3.10021083,96451.0,96450.0,0.38028428]
[1739347819632,3.09921083,96451.0,96450.0,0.36663195]
[1739347819873,2.85011483,96451.0,96450.0,0.36663195]
[1739347820078,2.85011483,96451.0,96450.0,0.36163195]
[1739347820284,2.85011483,96451.0,96450.0,0.36263195]
[1739347820486,2.56365683,96451.0,96450.0,0.36163195]
[1739347820691,2.47249983,96451.0,96450.0,0.36163195]
[1739347820912,2.24595783,96451.0,96450.0,0.36263195]
[1739347821125,1.87819883,96451.0,96450.0,0.36263195]
[1739347822338,1.87619883,96451.0,96450.0,0.36263195]
[1739347822479,1.87719883,96451.0,96450.0,0.36263195]
[1739347822880,1.60573183,96451.0,96450.0,0.36163195]
[1739347823126,1.60573183,96451.0,96450.0,0.36728428]
[1739347823302,1.60573183,96451.0,96450.0,0.36828428]
[1739347823512,1.60573183,96451.0,96450.0,0.36728428]
[1739347823710,1.43287183,96451.0,96450.0,0.36728428]
[1739347823908,1.43287183,96451.0,96450.0,0.36828428]
[1739347824140,1.43287183,96451.0,96450.0,0.36728428]
[1739347824562,1.43287183,96451.0,96450.0,0.36928428]
[1739347824774,1.43287183,96451.0,96450.0,0.36728428]
[1739347825045,1.43287183,96451.0,96450.0,0.36928428]
[1739347825454,1.43287183,96451.0,96450.0,0.27302908]
[1739347825662,1.43287183,96451.0,96450.0,0.26837675]
[1739347826231,1.43287183,96451.0,96450.0,0.26537675]
[1739347826426,1.43287183,96451.0,96450.0,0.26637675]
[1739347826614,1.43287183,96451.0,96450.0,0.26737675]
[1739347826809,1.43287183,96451.0,96450.0,0.26637675]
[1739347828113,1.43287183,96451.0,96450.0,0.23337675]
[1739347829306,1.43287183,96451.0,96450.0,0.2006004]
[1739347830669,1.58287183,96451.0,96450.0,0.06682356]
[1739347831839,1.58287183,96451.0,96450.0,0.06582356]
[1739347832055,1.58587183,96451.0,96450.0,0.04182356]
[1739347832265,0.15,96435.0,96430.0,0.08222386]
[1739347832504,0.155582,96412.0,96409.0,0.00022365]
[1739347832928,1.436374,96412.0,96411.0,0.09019511]
[1739347833237,1.483033,96412.0,96411.0,0.09019511]
[1739347833788,1.483033,96412.0,96411.0,0.09419511]
[1739347834167,1.483033,96412.0,96411.0,0.09019511]
[1739347834311,1.483033,96412.0,96411.0,0.09219511]
[1739347834992,1.51337189,96412.0,96411.0,0.09219511]
[1739347835223,1.51337189,96412.0,96411.0,0.09319511]
[1739347835598,1.60023324,96412.0,96411.0,0.09519511]
[1739347835740,1.60023324,96412.0,96411.0,0.09219511]
[1739347835939,1.60023324,96412.0,96411.0,0.09619511]
[1739347836160,0.37959089,96412.0,96411.0,0.09619511]
[1739347836572,0.03033889,96412.0,96411.0,0.19869876]
[1739347836784,0.155578,96415.0,96411.0,0.11469876]
[1739347836988,0.155575,96417.0,96414.0,0.1299]
[1739347837203,0.155576,96416.0,96415.0,0.0811]
[1739347837410,0.155576,96416.0,96415.0,0.08912911]
[1739347838241,0.24674585,96416.0,96415.0,0.09412911]
[1739347838649,0.24674585,96416.0,96415.0,0.08912911]
[1739347839082,0.24674585,96416.0,96415.0,0.10012911]
[1739347839453,0.70282485,96416.0,96415.0,0.10012911]
[1739347839670,1.52646985,96416.0,96415.0,0.10012911]
[1739347839805,1.47596285,96416.0,96415.0,0.10012911]
[1739347840012,0.776033,96416.0,96415.0,0.10012911]
[1739347840465,0.776033,96416.0,96415.0,0.10512911]
[1739347841511,0.364451,96416.0,96415.0,0.10512911]
[1739347841673,0.342426,96416.0,96415.0,0.10512911]
[1739347842091,0.342426,96416.0,96415.0,0.10535297]
[1739347842342,0.329176,96416.0,96415.0,0.09435297]
[1739347842710,0.292105,96416.0,96415.0,0.10535297]
[1739347843426,0.155576,96416.0,96415.0,0.08935297]
[1739347843859,0.155576,96416.0,96415.0,0.09435297]
[1739347844090,0.155576,96416.0,96415.0,0.08935297]
[1739347844223,0.294289,96416.0,96415.0,0.09435297]
[1739347844687,0.262506,96416.0,96415.0,0.09435297]
[1739347845228,0.262506,96416.0,96415.0,0.10535297]
[1739347846575,0.3498713,96416.0,96415.0,0.10535297]
[1739347849655,0.262506,96416.0,96415.0,0.10535297]
[1739347849853,0.155576,96416.0,96415.0,0.10535297]
[1739347850054,0.839881,96416.0,96415.0,0.10535297]
[1739347850271,0.841752,96416.0,96415.0,0.10535297]
[1739347855594,0.991752,96416.0,96415.0,0.02425297]
[1739347858609,0.991752,96416.0,96415.0,0.01325297]
[1739347858936,0.991752,96416.0,96415.0,0.01425297]
[1739347859431,0.991752,96416.0,96415.0,0.00925297]
[1739347859592,0.991752,96416.0,96415.0,0.01025297]
[1739347859797,0.991752,96416.0,96415.0,0.00925297]
[1739347860356,0.991752,96416.0,96415.0,0.00825297]
[1739347860567,0.305576,96416.0,96415.0,0.00925297]
[1739347860696,0.305576,96416.0,96415.0,0.01025297]
[1739347860901,2.977679,96416.0,96415.0,0.00222386]
[1739347861102,3.404112,96416.0,96415.0,0.00222386]
[1739347861342,3.01797,96416.0,96415.0,0.00222386]
[1739347863251,3.03422839,96416.0,96415.0,0.00222386]
[1739347864658,2.82426539,96416.0,96415.0,0.00222386]
[1739347864857,2.07339639,96416.0,96415.0,0.00222386]
[1739347865065,2.07339639,96416.0,96415.0,0.00848184]
[1739347865268,2.07339639,96416.0,96415.0,0.00222386]
[1739347865505,1.91450539,96416.0,96415.0,0.00222386]
[1739347865712,0.86169939,96416.0,96415.0,0.00222386]
[1739347866345,0.405758,96416.0,96415.0,0.13222386]
[1739347867168,0.405758,96416.0,96415.0,0.13022386]
[1739347867377,0.376005,96416.0,96415.0,0.13122386]
[1739347867796,0.288609,96416.0,96415.0,0.13022386]
[1739347868008,0.20743,96418.0,96417.0,0.0831]
[1739347868009,0.155572,96418.0,96417.0,0.0831]
[1739347868216,0.155571,96419.0,96418.0,0.13]
[1739347868416,0.155571,96419.0,96418.0,0.23250365]
[1739347869039,0.15285709,96419.0,96418.0,0.23250365]
[1739347869253,0.72206009,96419.0,96418.0,0.23250365]
[1739347869662,0.72206009,96419.0,96418.0,0.23650365]
[1739347870882,0.72206009,96419.0,96418.0,0.141]
[1739347871089,0.15285709,96419.0,96418.0,0.141]
[1739347871293,0.645771,96419.0,96418.0,0.141]
[1739347871469,0.824003,96422.0,96418.0,0.141]
[1739347872279,0.155571,96419.0,96418.0,0.141]
[1739347872476,1.123471,96419.0,96418.0,0.13]
[1739347872678,1.137305,96419.0,96418.0,0.133]
[1739347872858,1.10628,96419.0,96418.0,0.133]
[1739347873273,1.04019,96419.0,96418.0,0.138]
[1739347873634,1.19019,96419.0,96418.0,0.005]
[1739347873826,1.19019,96419.0,96418.0,0.009]
[1739347874029,1.19019,96419.0,96418.0,0.004]
[1739347874552,1.19019,96419.0,96418.0,0.011]
[1739347874953,1.18986576,96419.0,96418.0,0.011]
[1739347875203,1.18954088,96419.0,96418.0,0.011]
[1739347875486,1.18954088,96419.0,96418.0,0.007]
[1739347875697,1.18954088,96419.0,96418.0,0.008]
[1739347875888,1.034619,96419.0,96415.0,0.00022386]
[1739347876057,0.155575,96416.0,96415.0,0.00022386]
[1739347876256,2.840772,96416.0,96415.0,0.00022386]
[1739347876509,2.853338,96416.0,96415.0,0.00022386]
[1739347877460,2.808637,96416.0,96415.0,0.00122386]
[1739347877921,1.394799,96416.0,96415.0,0.00122386]
[1739347878132,1.41105654,96416.0,96415.0,0.00122386]
[1739347878539,1.41105654,96416.0,96415.0,0.00022386]
[1739347878964,1.41205654,96416.0,96415.0,0.00022386]
[1739347879170,1.41105654,96416.0,96415.0,0.00222386]
[1739347879453,1.41105654,96416.0,96415.0,0.00022386]
[1739347879853,1.41205654,96416.0,96415.0,0.00022386]
[1739347880957,1.41067438,96416.0,96415.0,0.00022386]
[1739347881458,1.56067438,96416.0,96415.0,0.00022386]
[1739347881703,0.32145038,96416.0,96415.0,0.00022386]
[1739347881903,3.96857038,96416.0,96415.0,0.00022386]
[1739347882076,3.97410238,96416.0,96415.0,0.00022386]
[1739347882376,3.72172538,96416.0,96415.0,0.00022386]
[1739347882583,3.72272538,96416.0,96415.0,0.00022386]
[1739347889852,0.305582,96412.0,96411.0,0.00022365]
[1739347890523,3.872131,96412.0,96411.0,0.00022365]
[1739347890735,3.854389,96412.0,96411.0,0.00022365]
[1739347891136,3.854389,96412.0,96411.0,0.00122365]
[1739347891300,3.296737,96412.0,96411.0,0.00122365]
[1739347891503,3.284476,96412.0,96411.0,0.00222365]
[1739347891712,3.234195,96412.0,96411.0,0.00222365]
[1739347891920,3.133368,96412.0,96411.0,0.00222365]
[1739347892121,3.133368,96412.0,96411.0,0.00122365]
[1739347892320,0.305582,96412.0,96411.0,0.00122365]
[1739347892564,3.123239,96412.0,96411.0,0.00122365]
[1739347892823,1.004864,96412.0,96411.0,0.04972365]
[1739347893026,0.852194,96412.0,96411.0,0.13142365]
[1739347893924,0.87842689,96412.0,96411.0,0.13142365]
[1739347894131,0.87842689,96412.0,96411.0,0.13042365]
[1739347894363,0.87842689,96412.0,96411.0,0.13142365]
[1739347894565,0.84732089,96412.0,96411.0,0.13142365]
[1739347895026,0.84732089,96412.0,96411.0,0.13042365]
[1739347895225,0.84732089,96412.0,96411.0,0.13142365]
[1739347897591,0.83232089,96412.0,96411.0,0.13142365]
[1739347897790,0.36721489,96412.0,96411.0,0.13142365]
[1739347897993,0.16681489,96412.0,96411.0,0.13142365]
[1739347898768,0.16681489,96412.0,96411.0,0.13042365]
[1739347898970,0.16681489,96412.0,96411.0,0.2329273]
[1739347899183,0.02623289,96412.0,96411.0,0.2409273]
[1739347899399,0.0001066,96419.0,96411.0,0.34343095]
[1739347899569,0.0255874,96419.0,96414.0,0.1255]
[1739347899771,0.0001066,96419.0,96417.0,0.1255]
[1739347900021,0.0001066,96419.0,96418.0,0.18040365]
[1739347900389,0.0001066,96419.0,96418.0,0.22800365]
[1739347900691,0.0001066,96419.0,96418.0,0.26207674]
[1739347900870,0.0001066,96419.0,96418.0,0.22800365]
[1739347902585,0.0001066,96419.0,96418.0,0.23800365]
[1739347903349,0.15456988,96435.0,96422.0,0.0779]
[1739347903552,0.1449755,96440.0,96424.0,0.1255]
[1739347903553,0.02597131,96425.0,96424.0,0.1255]
[1739347903706,0.155544,96436.0,96427.0,0.0779]
[1739347903913,0.155547,96434.0,96429.0,0.0779]
[1739347904124,0.299577,96433.0,96431.0,0.0779]
[1739347904322,0.155547,96434.0,96431.0,0.0779]
[1739347904523,0.16128,96433.0,96431.0,0.0779]
[1739347904722,0.161334,96432.0,96431.0,0.0779]
[1739347904920,0.161334,96433.0,96431.0,0.0779]
[1739347906487,0.161334,96433.0,96431.0,0.0829]
[1739347906804,0.161334,96433.0,96431.0,0.0849]
[1739347907038,0.132518,96432.0,96431.0,0.0849]
[1739347907247,0.02543636,96434.0,96431.0,0.0849]
[1739347907395,0.02543636,96434.0,96432.0,0.0476]
[1739347907596,0.155543,96436.0,96433.0,0.0779]
[1739347907804,0.15,96439.0,96433.0,0.0779]
[1739347907805,0.207387,96439.0,96433.0,0.0779]
[1739347908004,0.15,96441.0,96433.0,0.0779]
[1739347908005,0.155546,96435.0,96433.0,0.0779]
[1739347908440,0.153128,96434.0,96433.0,0.0779]
[1739347909651,0.153128,96434.0,96433.0,0.0829]
[1739347910260,0.153128,96434.0,96433.0,0.0859]
[1739347911196,0.24306789,96434.0,96433.0,0.0829]
[1739347911399,0.153128,96434.0,96433.0,0.0829]
[1739347911606,0.31938332,96434.0,96433.0,0.0779]
[1739347911792,0.31938332,96434.0,96433.0,0.0819]
[1739347912374,0.31938332,96434.0,96433.0,0.0839]
[1739347917699,0.16625532,96434.0,96433.0,0.0839]
[1739347917950,2.86390732,96434.0,96433.0,0.0839]
[1739347918107,2.78228832,96434.0,96433.0,0.0799]
[1739347918450,2.78228832,96434.0,96433.0,0.0839]
[1739347918653,0.52221032,96434.0,96433.0,0.0819]
[1739347918836,0.52221032,96434.0,96433.0,0.0839]
[1739347919497,0.52221032,96434.0,96433.0,0.0799]
[1739347919703,0.52221032,96434.0,96433.0,0.0829]
[1739347920180,0.52221032,96434.0,96433.0,0.0859]
[1739347920387,0.52221032,96434.0,96433.0,0.0829]
[1739347920538,0.52221032,96434.0,96433.0,0.0849]
[1739347920941,0.52221032,96434.0,96433.0,0.0799]
[1739347921137,0.52221032,96434.0,96433.0,0.0839]
[1739347921363,0.58125632,96434.0,96433.0,0.0839]
[1739347921691,0.565001,96434.0,96433.0,0.0839]
[1739347921820,0.565001,96434.0,96433.0,0.0779]
[1739347922224,0.565001,96434.0,96433.0,0.0839]
[1739347922704,0.565001,96434.0,96433.0,0.0779]
[1739347922860,0.565001,96434.0,96433.0,0.0809]
[1739347923834,0.5651076,96434.0,96433.0,0.0809]
[1739347924120,0.5651076,96434.0,96433.0,0.0859]
[1739347926129,0.4818116,96434.0,96433.0,0.0859]
[1739347926359,0.0001066,96434.0,96433.0,0.0859]
[1739347926739,0.0001066,96434.0,96433.0,0.09237563]
[1739347926952,0.14889231,96440.0,96434.0,0.0825]
[1739347927301,0.348067,96439.0,96436.0,0.0825]
[1739347927505,0.155541,96438.0,96437.0,0.10250365]
[1739347927999,0.92128,96438.0,96436.0,0.0825]
[1739347928179,0.599142,96437.0,96436.0,0.0825]
[1739347928568,0.599142,96437.0,96436.0,0.0855]
[1739347929134,0.599142,96437.0,96436.0,0.0825]
[1739347929135,0.578542,96437.0,96436.0,0.0825]
[1739347929629,0.578542,96437.0,96436.0,0.0865]
[1739347930029,0.578542,96437.0,96436.0,0.0825]
[1739347930644,0.578542,96437.0,96436.0,0.0875]
[1739347931038,0.578542,96437.0,96436.0,0.0825]
[1739347931255,0.578542,96437.0,96436.0,0.0945]
[1739347931466,0.578542,96437.0,96436.0,0.0905]
[1739347931817,0.578542,96437.0,96436.0,0.0945]
[1739347935491,0.578542,96437.0,96436.0,0.012]
[1739347936875,0.5786486,96437.0,96436.0,0.012]
[1739347937267,0.5786486,96437.0,96436.0,0.004]
[1739347937470,0.207391,96436.0,96432.0,0.0476]
[1739347937675,0.155548,96433.0,96432.0,0.0476]
[1739347937880,2.772408,96433.0,96432.0,0.0476]
[1739347938090,2.686131,96433.0,96432.0,0.0476]
[1739347938333,0.155561,96425.0,96424.0,9.602e-05]
[1739347939278,2.19728,96425.0,96424.0,9.602e-05]
[1739347939495,2.1945,96425.0,96424.0,9.602e-05]
[1739347939903,2.089657,96425.0,96424.0,9.602e-05]
[1739347940102,2.026118,96425.0,96424.0,9.602e-05]
[1739347940383,2.04237357,96425.0,96424.0,9.602e-05]
[1739347940556,0.155582,96412.0,96411.0,0.04842365]
[1739347940896,0.155582,96412.0,96411.0,0.04850589]
[1739347941069,2.758187,96412.0,96411.0,0.04850589]
[1739347941275,2.505287,96412.0,96411.0,0.04850589]
[1739347941480,2.52154468,96412.0,96411.0,0.04850589]
[1739347941885,2.52154468,96412.0,96411.0,0.00030589]
[1739347942243,2.52154468,96412.0,96411.0,0.00530589]
[1739347942454,2.52154468,96412.0,96411.0,0.00330589]
[1739347942657,2.52154468,96412.0,96411.0,0.00030589]
[1739347942859,2.52154468,96412.0,96411.0,0.00530589]
[1739347944085,2.52154468,96412.0,96411.0,0.00330589]
[1739347944265,2.52154468,96412.0,96411.0,0.00130589]
[1739347946065,2.31746816,96412.0,96411.0,0.00130589]
[1739347946310,2.25629916,96412.0,96411.0,0.00130589]
[1739347947276,2.25629916,96412.0,96411.0,0.00030589]
[1739347947482,2.25629916,96412.0,96411.0,0.00130589]
[1739347947637,0.19473216,96412.0,96411.0,0.00130589]
[1739347947844,2.58676516,96412.0,96411.0,0.00130589]
[1739347948240,2.51614616,96412.0,96411.0,0.00130589]
[1739347948443,2.43974916,96412.0,96411.0,0.00130589]
[1739347951273,2.24427816,96412.0,96411.0,0.00130589]
[1739347951653,2.20296516,96412.0,96411.0,0.00130589]
[1739347953345,2.18732516,96412.0,96411.0,0.00130589]
[1739347953742,2.11278016,96412.0,96411.0,0.00130589]
[1739347953968,1.22457316,96412.0,96411.0,0.00030589]
[1739347954533,1.22457316,96412.0,96411.0,0.00130589]
[1739347954810,1.37457316,96412.0,96411.0,0.00130589]
[1739347954968,1.37457316,96412.0,96411.0,0.00030589]
[1739347955328,1.37457316,96412.0,96411.0,0.00230589]
[1739347955885,1.37457316,96412.0,96411.0,0.00530589]
[1739347956652,1.37457316,96412.0,96411.0,0.00330589]
[1739347956825,1.37457316,96412.0,96411.0,0.00430589]
[1739347957351,1.37457316,96412.0,96411.0,0.00130589]
[1739347957736,1.37457316,96412.0,96411.0,0.00030589]
[1739347957898,1.37457316,96412.0,96411.0,0.00130589]
[1739347958269,1.37457316,96412.0,96411.0,0.00230589]
[1739347958455,1.37457316,96412.0,96411.0,0.00130589]
[1739347959717,1.37457316,96412.0,96411.0,0.00230589]
[1739347960836,1.35036116,96412.0,96411.0,0.00230589]
[1739347961037,0.34473216,96412.0,96411.0,0.00230589]
[1739347961657,2.25284416,96412.0,96411.0,0.00230589]
[1739347961859,2.29563016,96412.0,96411.0,0.00230589]
[1739347962209,2.17419316,96412.0,96411.0,0.00230589]
[1739347963034,2.17419316,96412.0,96411.0,0.00130589]
[1739347963877,1.77021116,96412.0,96411.0,0.00230589]
[1739347964108,1.77021116,96412.0,96411.0,0.00130589]
[1739347964408,1.77021116,96412.0,96411.0,0.00230589]
[1739347964801,1.51251816,96412.0,96411.0,0.00230589]
[1739347965301,1.06281816,96412.0,96411.0,0.00230589]
[1739347966017,1.06281816,96412.0,96411.0,0.01039309]
[1739347968880,0.19025016,96421.0,96411.0,0.01039309]
[1739347968881,0.0001065,96440.0,96436.0,0.155543]
[1739347969083,0.0001065,96440.0,96436.0,0.30867958]
[1739347969256,0.0001065,96440.0,96436.0,0.284643]
[1739347969729,0.0001065,96440.0,96436.0,0.29329872]
[1739347969935,0.02058426,96442.0,96441.0,0.155535]
[1739347970289,0.0001066,96451.0,96450.0,0.23692]
[1739347970470,0.02318393,96451.0,96450.0,0.33942365]
[1739347970604,0.0001066,96451.0,96450.0,0.34818264]
[1739347971953,0.0001066,96451.0,96450.0,0.35518264]
[1739347972148,0.0001066,96451.0,96450.0,0.34818264]
[1739347972350,0.0001066,96451.0,96450.0,0.38041282]
[1739347972579,0.0001066,96451.0,96450.0,0.40241282]
[1739347973122,0.0001066,96451.0,96450.0,0.35518264]
[1739347973328,0.0001066,96451.0,96450.0,0.21466264]
[1739347973964,0.0001066,96451.0,96450.0,0.19966264]
[1739347974146,0.0001066,96451.0,96450.0,0.21466264]
[1739347974354,0.0001066,96451.0,96450.0,0.20766264]
[1739347974909,0.0001066,96451.0,96450.0,0.21466264]
[1739347975375,0.2156296,96451.0,96450.0,0.02375899]
[1739347975508,1.6324966,96451.0,96450.0,0.00875899]
[1739347975710,1.6324966,96451.0,96450.0,0.007]
[1739347975912,1.6324966,96451.0,96450.0,0.022]
[1739347976145,1.6965066,96451.0,96450.0,0.022]
[1739347976349,1.6225306,96451.0,96450.0,0.007]
[1739347976565,1.4571246,96451.0,96450.0,0.022]
[1739347976954,1.3818596,96451.0,96450.0,0.015]
[1739347977150,1.3818596,96451.0,96450.0,0.007]
[1739347977362,1.4689506,96451.0,96450.0,0.021]
[1739347977561,1.3816006,96451.0,96450.0,0.021]
[1739347978106,0.9467556,96451.0,96450.0,0.021]
[1739347978405,0.8122586,96451.0,96450.0,0.021]
[1739347979234,0.8122586,96451.0,96450.0,0.007]
[1739347979580,0.8122586,96451.0,96450.0,0.022]
[1739347981230,0.155549,96433.0,96431.0,0.0814]
[1739347981383,0.693159,96432.0,96431.0,0.0814]
[1739347981598,0.654819,96432.0,96431.0,0.0814]
[1739347981954,0.399781,96432.0,96431.0,0.0814]
[1739347982380,7.314e-05,96433.0,96431.0,0.0814]
[1739347982584,0.290234,96432.0,96431.0,0.0814]
[1739347983384,0.290234,96432.0,96431.0,0.019]
[1739347983612,0.15270245,96432.0,96431.0,0.014]
[1739347983808,0.30825245,96432.0,96431.0,0.014]
[1739347984057,0.30925245,96432.0,96431.0,0.02]
[1739347984264,0.15270245,96432.0,96416.0,0.0825]
[1739347984472,0.15556,96426.0,96417.0,0.10250365]
[1739347984821,0.15007314,96433.0,96417.0,0.10250365]
[1739347985031,0.155572,96419.0,96417.0,0.10250365]
[1739347985255,0.155574,96417.0,96415.0,0.045]
[1739347985414,0.155574,96417.0,96416.0,0.10250365]
[1739347985627,0.155581,96413.0,96411.0,0.00022365]
[1739347985821,0.602262,96412.0,96411.0,0.1027273]
[1739347986261,0.371831,96412.0,96411.0,0.1027273]
[1739347986710,0.334585,96412.0,96411.0,0.1027273]
[1739347987265,0.335585,96412.0,96411.0,0.1157273]
[1739347987494,0.214873,96412.0,96411.0,0.1157273]
[1739347987907,0.215873,96412.0,96411.0,0.1187273]
[1739347989218,0.214873,96412.0,96411.0,0.1057273]
[1739347989622,0.215873,96412.0,96411.0,0.1187273]
[1739347990077,0.23928332,96412.0,96411.0,0.1187273]
[1739347997061,0.23828332,96412.0,96411.0,0.1027273]
[1739347997264,0.23728332,96412.0,96411.0,0.1027273]
[1739347997409,0.23928332,96412.0,96411.0,0.1217273]
[1739348001765,0.38928332,96412.0,96411.0,0.01922365]
[1739348002634,0.38828332,96412.0,96411.0,0.00622365]
[1739348002850,0.38928332,96412.0,96411.0,0.01522365]
[1739348003025,0.38828332,96412.0,96411.0,0.00922365]
[1739348003607,0.38728332,96412.0,96411.0,0.00522365]
[1739348003756,0.38828332,96412.0,96411.0,0.01422365]
[1739348004152,0.38828332,96412.0,96411.0,0.00922365]
[1739348004574,0.38828332,96412.0,96411.0,0.01122365]
[1739348004777,0.38828332,96412.0,96411.0,0.00922365]
[1739348005084,0.38728332,96412.0,96411.0,0.00022365]
[1739348005289,0.40354177,96412.0,96411.0,0.00022365]
[1739348006002,0.40354177,96412.0,96411.0,0.00322365]
[1739348006642,0.40354177,96412.0,96411.0,0.00022365]
[1739348006846,0.40354177,96412.0,96411.0,0.01422365]
[1739348006847,0.40454177,96412.0,96411.0,0.01422365]
[1739348006983,0.40454177,96412.0,96411.0,0.00922365]
[1739348007390,0.40454177,96412.0,96411.0,0.01122365]
[1739348007591,0.40454177,96412.0,96411.0,0.00922365]
[1739348007790,0.40454177,96412.0,96411.0,0.01422365]
[1739348008401,0.40454177,96412.0,96411.0,0.09082365]
[1739348008402,0.38770377,96412.0,96411.0,0.09082365]
[1739348008667,0.49290677,96412.0,96411.0,0.13002365]
[1739348009008,0.49290677,96412.0,96411.0,0.13302365]
[1739348009209,0.49290677,96412.0,96411.0,0.12802365]
[1739348009413,0.49290677,96412.0,96411.0,0.12702365]
[1739348009819,0.49290677,96412.0,96411.0,0.13002365]
[1739348010238,0.49290677,96412.0,96411.0,0.12802365]
[1739348010434,0.49290677,96412.0,96411.0,0.13302365]
[1739348012898,0.49290677,96412.0,96411.0,0.13002365]
[1739348013295,0.34525077,96412.0,96411.0,0.12802365]
[1739348013489,0.34525077,96412.0,96411.0,0.13202365]
[1739348013490,2.08252877,96412.0,96411.0,0.13202365]
[1739348013701,2.09405777,96412.0,96411.0,0.13202365]
[1739348015139,2.09405777,96412.0,96411.0,0.12802365]
[1739348015561,2.09405777,96412.0,96411.0,0.13202365]
[1739348016844,2.09405777,96412.0,96411.0,0.12902365]
[1739348017255,1.72159677,96412.0,96411.0,0.13202365]
[1739348017444,1.72159677,96412.0,96411.0,0.13970899]
[1739348017574,1.69360177,96412.0,96411.0,0.13970899]
[1739348018002,1.66298977,96412.0,96411.0,0.13570899]
[1739348018356,1.66298977,96412.0,96411.0,0.13970899]
[1739348018490,1.66298977,96412.0,96411.0,0.13670899]
[1739348018692,1.64741677,96412.0,96411.0,0.13970899]
[1739348018893,1.64741677,96412.0,96411.0,0.13570899]
[1739348019087,1.64741677,96412.0,96411.0,0.13970899]
[1739348019310,1.46775377,96412.0,96411.0,0.13970899]
[1739348020293,1.25156577,96412.0,96411.0,0.13970899]
[1739348020500,1.01922577,96412.0,96411.0,0.13970899]
[1739348023536,0.89684877,96412.0,96411.0,0.13970899]
[1739348025108,0.89684877,96412.0,96411.0,0.01490899]
[1739348025935,0.89684877,96412.0,96411.0,0.01090899]
[1739348026109,0.89684877,96412.0,96411.0,0.01290899]
[1739348026341,0.89684877,96412.0,96411.0,0.00990899]
[1739348026542,0.89684877,96412.0,96411.0,0.01190899]
[1739348031322,0.88059032,96412.0,96411.0,0.01190899]
[1739348031800,0.88059032,96412.0,96411.0,0.00990899]
[1739348032241,0.88059032,96412.0,96411.0,0.01190899]
[1739348033183,0.88059032,96412.0,96411.0,0.00990899]
[1739348033563,0.88059032,96412.0,96411.0,0.01190899]
[1739348034267,0.89684946,96412.0,96411.0,0.01190899]
[1739348037228,0.89684946,96412.0,96411.0,0.00790899]
[1739348037550,0.9084407,96412.0,96411.0,0.00890899]
[1739348038050,0.305583,96411.0,96410.0,3.40303947]
[1739348038188,3.894512,96411.0,96410.0,3.40303947]
[1739348039045,3.894512,96411.0,96410.0,3.38503785]
[1739348040031,3.894512,96411.0,96410.0,3.31303785]
[1739348040708,3.905512,96411.0,96410.0,3.31403785]
[1739348040912,3.907512,96411.0,96410.0,3.31403785]
[1739348041263,3.896512,96411.0,96410.0,3.31303785]
[1739348041464,0.316583,96411.0,96410.0,3.31403785]
[1739348041669,3.905512,96411.0,96410.0,3.31403785]
[1739348042756,3.9051217,96411.0,96410.0,3.31403785]
[1739348043680,3.9051217,96411.0,96410.0,3.30003785]
[1739348045597,2.9879183,96411.0,96410.0,3.30003785]
[1739348045820,2.9505843,96411.0,96410.0,3.30003785]
[1739348046613,2.8875703,96411.0,96410.0,3.30003785]
[1739348047269,2.7272763,96411.0,96410.0,3.30003785]
[1739348047478,1.6698413,96411.0,96410.0,3.30003785]
[1739348047665,1.2848213,96411.0,96410.0,3.30003785]
[1739348047872,1.2848213,96411.0,96410.0,3.37983785]
[1739348048179,1.2848213,96411.0,96410.0,3.37883785]
[1739348048339,1.2758213,96411.0,96410.0,3.37883785]
[1739348048500,1.2788213,96411.0,96410.0,3.37883785]
[1739348049604,1.2768213,96411.0,96410.0,3.29903785]
[1739348049801,1.2738213,96411.0,96410.0,3.29903785]
[1739348049999,1.2768213,96411.0,96410.0,3.29903785]
[1739348050987,0.9716286,96411.0,96410.0,3.29903785]
[1739348051516,1.1272116,96411.0,96410.0,3.29903785]
[1739348052979,1.1242116,96411.0,96410.0,3.29903785]
[1739348053178,1.2772116,96411.0,96410.0,3.29903785]
[1739348053781,1.2742116,96411.0,96410.0,3.29903785]
[1739348054084,1.2772116,96411.0,96410.0,3.29903785]
[1739348057047,1.2772116,96411.0,96410.0,3.24614765]
[1739348057247,1.2772116,96411.0,96410.0,3.22002765]
[1739348057823,1.2772116,96411.0,96410.0,3.19478742]
[1739348059252,1.2742116,96411.0,96410.0,3.19478742]
[1739348059387,0.3056896,96411.0,96410.0,3.19478742]
[1739348059582,3.9036186,96411.0,96410.0,3.19578742]
[1739348059808,3.9066186,96411.0,96410.0,3.19578742]
[1739348060999,3.9066186,96411.0,96410.0,3.17273742]
[1739348062773,3.9066186,96411.0,96410.0,3.14936742]
[1739348070817,3.9066186,96411.0,96410.0,3.12560742]
[1739348071020,3.8780866,96411.0,96410.0,3.12560742]
[1739348071234,2.7401546,96411.0,96410.0,3.12560742]
[1739348071346,2.6317446,96411.0,96410.0,3.12560742]
[1739348071958,2.6227446,96411.0,96410.0,3.12460742]
[1739348072151,2.6317446,96411.0,96410.0,3.12560742]
[1739348072402,1.4175336,96411.0,96410.0,3.12560742]
[1739348072602,1.4205336,96411.0,96410.0,3.20810742]
[1739348072992,1.4205336,96411.0,96410.0,3.25440742]
[1739348073324,1.4085336,96411.0,96410.0,3.25340742]
[1739348073512,1.4145336,96411.0,96410.0,3.25440742]
[1739348073811,1.4165336,96411.0,96410.0,3.25440742]
[1739348076947,0.3136896,96411.0,96410.0,3.25440742]
[1739348077163,3.2136056,96411.0,96410.0,3.25440742]
[1739348077300,2.7227846,96411.0,96410.0,3.25440742]
[1739348077978,2.7167846,96411.0,96410.0,3.25340742]
[1739348078195,2.7227846,96411.0,96410.0,3.25440742]
[1739348078384,2.7207846,96411.0,96410.0,3.25440742]
[1739348078766,2.7227846,96411.0,96410.0,3.25440742]
[1739348084463,1.9335976,96411.0,96410.0,3.25440742]
[1739348084666,1.6089946,96411.0,96410.0,3.25440742]
[1739348085397,1.6069946,96411.0,96410.0,3.25440742]
[1739348085990,1.6019946,96411.0,96410.0,3.25340742]
[1739348087579,0.3066896,96411.0,96410.0,3.25340742]
[1739348087814,0.0061066,96411.0,96410.0,3.61399972]
[1739348088290,0.0061066,96411.0,96410.0,3.51149607]
[1739348088765,0.0001066,96411.0,96410.0,3.51149607]
[1739348088996,0.0001066,96411.0,96410.0,3.51649607]
[1739348089235,0.0001066,96411.0,96410.0,3.36391107]
[1739348089465,0.0001066,96411.0,96410.0,3.35591107]